fUSD/lending_fUSD_20240822
["ID","MTS","AMOUNT","RATE_DAILY","PERIOD"]
[335556996,1724326238510,-500.0,0.00010799,2]
[335556997,1724326238519,-500.0,0.00010799,2]
[335556998,1724326238529,-500.0,0.00010799,2]
[335556999,1724326238539,-500.0,0.00010799,2]
[335557000,1724326238548,-500.0,0.00010799,2]
[335557001,1724326238557,-582.5560313,0.00010799,2]
[335557002,1724326238567,-500.0,0.00010799,2]
[335557003,1724326238577,-6742658.11010411,0.000108,2]
[335557014,1724326238738,-5241.13075619,0.000108,2]
[335557017,1724326238750,-320.05857309,0.000108,2]
[335557019,1724326238761,-23916.17220221,0.000108,2]
[335557021,1724326238773,-26554.0,0.000108,2]
[335557023,1724326238788,-736.40245934,0.000108,2]
[335557025,1724326238800,-597.24,0.000108,2]
[335557028,1724326238811,-348.23005832,0.000108,2]
[335557030,1724326238824,-434.74970122,0.000108,2]
[335557032,1724326238835,-556.34975306,0.000108,2]
[335557034,1724326238847,-1340.01178555,0.000108,2]
[335557036,1724326238859,-4953.41834692,0.000108,2]
[335557038,1724326238873,-280.407,0.000108,2]
[335557041,1724326238885,-1921.952907,0.000108,2]
[335557043,1724326238899,-888.51999758,0.000108,2]
[335557045,1724326238910,-47645.499317,0.000108,2]
[335557047,1724326238924,-2625.74150577,0.000108,2]
[335557049,1724326238937,-2611.44251202,0.000108,2]
[335557055,1724326239739,-1097.56644569,0.000108,2]
[335557056,1724326239860,-13042.14392744,0.000108,2]
[335557057,1724326239898,-449.63758377,0.000108,2]
[335557058,1724326239909,-46374.92915533,0.000108,2]
[335557059,1724326240015,-1519.89638289,0.000108,2]
[335557069,1724326242659,-499.99,0.00010699,2]
[335557071,1724326242668,-474.56127833,0.000107,2]
[335557072,1724326242677,-156.2283704,0.0001079,2]
[335557073,1724326242687,-9.6166296,0.0001079,2]
[335557074,1724326242697,-3337.37397125,0.0001079,2]
[335557075,1724326242707,-3799.999993,0.0001079,2]
[335557077,1724326242719,-2743.43994,0.0001079,2]
[335557078,1724326242730,-695.84866301,0.0001079,2]
[335557081,1724326242740,-489.29187735,0.0001079,2]
[335557082,1724326242751,-1186.17584361,0.0001079,2]
[335557083,1724326242810,-5797.7866457,0.0001079,2]
[335557084,1724326242821,-1269.9797806,0.0001079,2]
[335557085,1724326242831,-835.04991627,0.0001079,2]
[335557086,1724326242842,-1540.23583073,0.0001079,2]
[335557087,1724326242854,-79.81753848,0.0001079,2]
[335557088,1724326242863,-810.0,0.0001079,2]
[335557089,1724326242872,-1593648.82091366,0.000108,2]
[335557090,1724326242890,-23028.69979741,0.000108,2]
[335557091,1724326242912,-670.10086172,0.000107,2]
[335557092,1724326242923,-1579.72210345,0.000107,2]
[335557093,1724326242945,-1952.40983483,0.000107,2]
[335557095,1724326242954,-82.57902704,0.000108,2]
[335557107,1724326245625,-694.8001,0.000107,2]
[335557108,1724326245634,-5163.95280001,0.000108,2]
[335557109,1724326245645,-3348.50149363,0.000108,2]
[335557110,1724326245656,-315.79999999,0.000108,2]
[335557111,1724326245667,-15539.40003336,0.000108,2]
[335557112,1724326245678,-9831.76687634,0.000108,2]
[335557113,1724326245690,-7036.33453213,0.000108,2]
[335557114,1724326245701,-4511.90414,0.000108,2]
[335557115,1724326245789,-1650.24238056,0.000108,2]
[335557116,1724326245827,-310.0,0.000108,2]
[335557119,1724326301479,203.06755488,9.899e-05,2]
[335557120,1724326373778,467.16,8.219e-05,2]
[335557126,1724326524231,1197189.84997737,0.00027,120]
[335557127,1724326595393,1126105.03363723,0.00025,60]
[335557130,1724326756404,949.8028791,9.899e-05,2]
[335557137,1724326914045,492.36,8.219e-05,2]
[335557166,1724327242467,257.49,9.889e-05,2]
[335557168,1724327388760,516.31,8.219e-05,2]
[335557176,1724327431755,-995.31650992,9.929e-05,2]
[335557177,1724327431765,-330.72471455,9.941e-05,2]
[335557178,1724327431775,-402.17727663,9.941e-05,2]
[335557179,1724327431785,-720.7073034,0.0001,2]
[335557180,1724327431862,-329.2926966,0.0001,2]
[335557181,1724327431872,-155.0,0.00010097,2]
[335557182,1724327431882,-155.0,0.00010097,2]
[335557183,1724327431891,-25.28458003,0.00010097,2]
[335557184,1724327432021,-129.71541997,0.00010097,2]
[335557185,1724327432031,-206.02448722,0.00010097,2]
[335557186,1724327432040,-203.06755488,0.00010097,2]
[335557187,1724327432050,-172.4,0.00010109,2]
[335557188,1724327432059,-1000.0,0.00010449,2]
[335557189,1724327432068,-516.31,0.00010468,2]
[335557190,1724327432077,-269.05621551,0.00010566,2]
[335557191,1724327432086,-1000.0,0.000106,2]
[335557192,1724327432096,-150.0,0.00010658,2]
[335557193,1724327432105,-153.18864,0.00010692,2]
[335557194,1724327432114,-174.17506022,0.00010699,2]
[335557195,1724327432122,-320.30056243,0.00010699,2]
[335557196,1724327432132,-5984.2778,0.000107,2]
[335557197,1724327432141,-12203.5122,0.000107,2]
[335557198,1724327432150,-743.06186494,0.000107,2]
[335557199,1724327432160,-1000.0,0.000107,2]
[335557200,1724327432169,-5334.07513803,0.00010713,2]
[335557201,1724327432178,-174.17506022,0.00010739,2]
[335557202,1724327432186,-320.30056243,0.00010766,2]
[335557203,1724327432195,-174.17506022,0.00010779,2]
[335557204,1724327432208,-155.635153,0.00010787,2]
[335557205,1724327432217,-150.098844,0.00010787,2]
[335557206,1724327432226,-303.438607,0.00010787,2]
[335557207,1724327432235,-159.800669,0.00010787,2]
[335557209,1724327432244,-155.635153,0.00010787,2]
[335557210,1724327432254,-150.098844,0.00010787,2]
[335557212,1724327432264,-164.362579,0.00010787,2]
[335557214,1724327432274,-150.0,0.00010797,2]
[335557215,1724327432284,-155.635153,0.00010798,2]
[335557217,1724327432293,-150.098844,0.00010798,2]
[335557218,1724327432302,-150.098844,0.00010798,2]
[335557220,1724327432311,-303.438607,0.00010798,2]
[335557221,1724327432321,-303.438607,0.00010798,2]
[335557222,1724327432330,-303.438607,0.00010798,2]
[335557223,1724327432339,-1053.72,0.00010798,2]
[335557224,1724327432347,-146.68354003,0.00010798,2]
[335557227,1724327437718,-348.91410208,9.91e-05,2]
[335557228,1724327437727,-588.7918,0.00010699,2]
[335557229,1724327437736,-8.95161297,0.00010798,2]
[335557230,1724327437745,-150.098844,0.00010798,2]
[335557231,1724327437754,-500.0,0.00010798,2]
[335557232,1724327437763,-500.0,0.00010798,2]
[335557233,1724327437772,-500.0,0.00010798,2]
[335557234,1724327437781,-500.0,0.00010798,2]
[335557235,1724327437792,-500.0,0.00010798,2]
[335557236,1724327437801,-500.0,0.00010798,2]
[335557237,1724327437811,-500.0,0.00010798,2]
[335557238,1724327437820,-500.0,0.00010798,2]
[335557239,1724327437829,-500.0,0.00010798,2]
[335557240,1724327437839,-500.0,0.00010798,2]
[335557241,1724327437848,-500.0,0.00010798,2]
[335557242,1724327437857,-500.0,0.00010798,2]
[335557243,1724327437867,-500.0,0.00010798,2]
[335557244,1724327437876,-500.0,0.00010798,2]
[335557245,1724327437886,-500.0,0.00010798,2]
[335557246,1724327437895,-500.0,0.00010798,2]
[335557247,1724327437905,-500.0,0.00010798,2]
[335557248,1724327437914,-500.0,0.00010798,2]
[335557249,1724327437923,-500.0,0.00010798,2]
[335557250,1724327437933,-500.0,0.00010798,2]
[335557251,1724327437943,-164.362579,0.00010798,2]
[335557252,1724327437952,-500.0,0.00010798,2]
[335557253,1724327437962,-164.362579,0.00010798,2]
[335557254,1724327437972,-500.0,0.00010798,2]
[335557255,1724327437981,-265.45837149,0.00010798,2]
[335557256,1724327437991,-500.0,0.00010798,2]
[335557257,1724327438000,-500.0,0.00010798,2]
[335557258,1724327438010,-500.0,0.00010798,2]
[335557259,1724327438020,-500.0,0.00010798,2]
[335557260,1724327438029,-500.0,0.00010798,2]
[335557261,1724327438038,-500.0,0.00010798,2]
[335557262,1724327438048,-500.0,0.00010798,2]
[335557263,1724327438057,-500.0,0.00010798,2]
[335557264,1724327438067,-500.0,0.00010798,2]
[335557265,1724327438077,-500.0,0.00010798,2]
[335557266,1724327438086,-500.0,0.00010798,2]
[335557282,1724327438248,-500.0,0.00010798,2]
[335557284,1724327438259,-500.0,0.00010798,2]
[335557286,1724327438268,-500.0,0.00010798,2]
[335557288,1724327438279,-500.0,0.00010798,2]
[335557290,1724327438289,-635.42,0.00010798,2]
[335557292,1724327438299,-635.42,0.00010798,2]
[335557295,1724327438308,-500.0,0.00010798,2]
[335557298,1724327438317,-500.0,0.00010798,2]
[335557300,1724327438329,-500.0,0.00010798,2]
[335557302,1724327438338,-500.0,0.00010798,2]
[335557304,1724327438348,-500.0,0.00010798,2]
[335557307,1724327438358,-500.0,0.00010798,2]
[335557309,1724327438370,-500.0,0.00010798,2]
[335557311,1724327438381,-500.0,0.00010798,2]
[335557313,1724327438390,-500.0,0.00010798,2]
[335557315,1724327438400,-500.0,0.00010798,2]
[335557317,1724327438410,-500.0,0.00010798,2]
[335557319,1724327438420,-500.0,0.00010798,2]
[335557321,1724327438430,-499.99,0.00010798,2]
[335557323,1724327438440,-500.0,0.00010798,2]
[335557325,1724327438450,-500.0,0.00010798,2]
[335557327,1724327438459,-500.0,0.00010798,2]
[335557329,1724327438468,-500.0,0.00010798,2]
[335557331,1724327438477,-500.0,0.00010798,2]
[335557333,1724327438486,-500.0,0.00010798,2]
[335557335,1724327438495,-500.0,0.00010798,2]
[335557337,1724327438505,-500.0,0.00010798,2]
[335557339,1724327438514,-500.0,0.00010798,2]
[335557341,1724327438524,-500.0,0.00010798,2]
[335557343,1724327438533,-500.0,0.00010798,2]
[335557345,1724327438542,-500.0,0.00010798,2]
[335557347,1724327438551,-500.0,0.00010798,2]
[335557349,1724327438560,-500.0,0.00010798,2]
[335557351,1724327438569,-500.0,0.00010798,2]
[335557353,1724327438578,-500.0,0.00010798,2]
[335557355,1724327438588,-500.0,0.00010798,2]
[335557357,1724327438598,-500.0,0.00010798,2]
[335557359,1724327438607,-500.0,0.00010798,2]
[335557361,1724327438616,-500.0,0.00010798,2]
[335557363,1724327438626,-500.0,0.00010798,2]
[335557365,1724327438636,-500.0,0.00010798,2]
[335557367,1724327438645,-500.0,0.00010798,2]
[335557369,1724327438655,-500.0,0.00010798,2]
[335557371,1724327438663,-500.0,0.00010798,2]
[335557373,1724327438674,-500.0,0.00010798,2]
[335557375,1724327438683,-500.0,0.00010798,2]
[335557377,1724327438692,-500.0,0.00010798,2]
[335557379,1724327438702,-500.0,0.00010798,2]
[335557381,1724327438711,-500.0,0.00010798,2]
[335557383,1724327438720,-500.0,0.00010798,2]
[335557385,1724327438730,-500.0,0.00010798,2]
[335557387,1724327438739,-500.0,0.00010798,2]
[335557389,1724327438748,-500.0,0.00010798,2]
[335557391,1724327438757,-500.0,0.00010798,2]
[335557393,1724327438766,-724.01,0.00010798,2]
[335557395,1724327438775,-724.01,0.00010798,2]
[335557397,1724327438784,-500.0,0.00010798,2]
[335557399,1724327438793,-500.0,0.00010798,2]
[335557401,1724327438802,-500.0,0.00010798,2]
[335557403,1724327438811,-500.0,0.00010798,2]
[335557405,1724327438820,-500.0,0.00010798,2]
[335557407,1724327438829,-500.0,0.00010798,2]
[335557409,1724327438838,-500.0,0.00010798,2]
[335557411,1724327438847,-500.0,0.00010798,2]
[335557413,1724327438856,-500.0,0.00010798,2]
[335557415,1724327438865,-500.0,0.00010798,2]
[335557416,1724327438874,-500.0,0.00010798,2]
[335557417,1724327438883,-500.0,0.00010798,2]
[335557418,1724327438892,-500.0,0.00010798,2]
[335557419,1724327438901,-500.0,0.00010798,2]
[335557420,1724327438911,-500.0,0.00010798,2]
[335557421,1724327438920,-500.0,0.00010798,2]
[335557422,1724327438929,-500.0,0.00010798,2]
[335557423,1724327438938,-500.0,0.00010798,2]
[335557424,1724327438948,-500.0,0.00010798,2]
[335557425,1724327438957,-500.0,0.00010798,2]
[335557426,1724327438966,-500.0,0.00010798,2]
[335557427,1724327438975,-500.0,0.00010798,2]
[335557428,1724327438984,-500.0,0.00010798,2]
[335557429,1724327438993,-500.0,0.00010798,2]
[335557430,1724327439003,-500.0,0.00010798,2]
[335557431,1724327439012,-500.0,0.00010798,2]
[335557432,1724327439022,-500.0,0.00010798,2]
[335557433,1724327439031,-500.0,0.00010798,2]
[335557434,1724327439040,-500.0,0.00010798,2]
[335557435,1724327439049,-500.0,0.00010798,2]
[335557436,1724327439058,-1337.08,0.00010798,2]
[335557437,1724327439067,-1337.08,0.00010798,2]
[335557439,1724327439076,-500.0,0.00010798,2]
[335557441,1724327439086,-500.0,0.00010798,2]
[335557442,1724327439095,-500.0,0.00010798,2]
[335557444,1724327439104,-500.0,0.00010798,2]
[335557446,1724327439113,-500.0,0.00010798,2]
[335557448,1724327439122,-367.73063408,0.00010798,2]
[335557450,1724327439131,-500.0,0.00010798,2]
[335557452,1724327439140,-500.0,0.00010798,2]
[335557454,1724327439150,-500.0,0.00010798,2]
[335557456,1724327439159,-240.48,0.00010798,2]
[335557458,1724327439168,-500.0,0.00010798,2]
[335557460,1724327439177,-500.0,0.00010798,2]
[335557462,1724327439185,-500.0,0.00010798,2]
[335557464,1724327439195,-500.0,0.00010798,2]
[335557466,1724327439209,-500.0,0.00010798,2]
[335557468,1724327439218,-500.0,0.00010798,2]
[335557470,1724327439228,-500.0,0.00010798,2]
[335557472,1724327439237,-500.0,0.00010798,2]
[335557474,1724327439247,-500.0,0.00010798,2]
[335557476,1724327439257,-500.0,0.00010798,2]
[335557478,1724327439266,-500.0,0.00010798,2]
[335557480,1724327439277,-500.0,0.00010798,2]
[335557482,1724327439288,-500.0,0.00010798,2]
[335557484,1724327439297,-500.0,0.00010798,2]
[335557486,1724327439306,-523.99,0.00010798,2]
[335557488,1724327439316,-523.99,0.00010798,2]
[335557490,1724327439325,-500.0,0.00010798,2]
[335557492,1724327439334,-500.0,0.00010798,2]
[335557494,1724327439344,-500.0,0.00010798,2]
[335557496,1724327439353,-500.0,0.00010798,2]
[335557498,1724327439363,-500.0,0.00010798,2]
[335557500,1724327439373,-500.0,0.00010798,2]
[335557502,1724327439383,-500.0,0.00010798,2]
[335557504,1724327439392,-500.0,0.00010798,2]
[335557505,1724327439402,-500.0,0.00010798,2]
[335557506,1724327439411,-500.0,0.00010798,2]
[335557507,1724327439421,-500.0,0.00010798,2]
[335557508,1724327439432,-937.6,0.00010798,2]
[335557509,1724327439441,-937.6,0.00010798,2]
[335557510,1724327439451,-628.64,0.00010798,2]
[335557511,1724327439460,-628.64,0.00010798,2]
[335557512,1724327439471,-500.0,0.00010798,2]
[335557513,1724327439480,-500.0,0.00010798,2]
[335557514,1724327439489,-1354.11,0.00010798,2]
[335557515,1724327439498,-1354.11,0.00010798,2]
[335557516,1724327439507,-500.0,0.00010798,2]
[335557517,1724327439517,-500.0,0.00010798,2]
[335557518,1724327439526,-500.0,0.00010798,2]
[335557519,1724327439536,-500.0,0.00010798,2]
[335557520,1724327439545,-500.0,0.00010798,2]
[335557521,1724327439554,-500.0,0.00010798,2]
[335557522,1724327439564,-500.0,0.00010798,2]
[335557523,1724327439573,-500.0,0.00010798,2]
[335557524,1724327439583,-500.0,0.00010798,2]
[335557525,1724327439592,-500.0,0.00010798,2]
[335557526,1724327439601,-500.0,0.00010798,2]
[335557527,1724327439610,-500.0,0.00010798,2]
[335557528,1724327439619,-500.0,0.00010798,2]
[335557530,1724327439628,-500.0,0.00010798,2]
[335557531,1724327439638,-500.0,0.00010798,2]
[335557532,1724327439647,-500.0,0.00010798,2]
[335557533,1724327439655,-500.0,0.00010798,2]
[335557534,1724327439667,-500.0,0.00010798,2]
[335557535,1724327439677,-500.0,0.00010798,2]
[335557536,1724327439686,-500.0,0.00010798,2]
[335557537,1724327439695,-500.0,0.00010798,2]
[335557538,1724327439705,-500.0,0.00010798,2]
[335557539,1724327439714,-500.0,0.00010798,2]
[335557540,1724327439723,-1301.29,0.00010798,2]
[335557541,1724327439732,-1301.29,0.00010798,2]
[335557542,1724327439741,-500.0,0.00010798,2]
[335557543,1724327439750,-500.0,0.00010798,2]
[335557544,1724327439760,-500.0,0.00010798,2]
[335557545,1724327439770,-500.0,0.00010798,2]
[335557546,1724327439779,-500.0,0.00010798,2]
[335557547,1724327439788,-500.0,0.00010798,2]
[335557548,1724327439797,-500.0,0.00010798,2]
[335557549,1724327439807,-500.0,0.00010798,2]
[335557550,1724327439816,-795.56,0.00010798,2]
[335557551,1724327439827,-500.0,0.00010798,2]
[335557552,1724327439837,-795.56,0.00010798,2]
[335557553,1724327439847,-500.0,0.00010798,2]
[335557554,1724327439856,-500.0,0.00010798,2]
[335557555,1724327439866,-500.0,0.00010798,2]
[335557556,1724327439875,-500.0,0.00010798,2]
[335557557,1724327439885,-500.0,0.00010798,2]
[335557558,1724327439894,-500.0,0.00010798,2]
[335557559,1724327439903,-500.0,0.00010798,2]
[335557560,1724327439912,-500.0,0.00010798,2]
[335557561,1724327439921,-500.0,0.00010798,2]
[335557562,1724327439931,-500.0,0.00010798,2]
[335557563,1724327439940,-500.0,0.00010798,2]
[335557564,1724327439949,-500.0,0.00010798,2]
[335557565,1724327439958,-500.0,0.00010798,2]
[335557566,1724327439967,-500.0,0.00010798,2]
[335557567,1724327439976,-500.0,0.00010798,2]
[335557568,1724327439985,-205.59888276,0.00010798,2]
[335557569,1724327440012,-294.40111724,0.00010798,2]
[335557570,1724327440021,-500.0,0.00010798,2]
[335557571,1724327440031,-500.0,0.00010798,2]
[335557572,1724327440040,-222.66672321,0.00010798,2]
[335557573,1724327440051,-277.33327679,0.00010798,2]
[335557574,1724327440061,-222.66672321,0.00010798,2]
[335557575,1724327440079,-277.33327679,0.00010798,2]
[335557576,1724327440088,-1230.43,0.00010798,2]
[335557577,1724327440097,-1230.43,0.00010798,2]
[335557578,1724327440107,-500.0,0.00010798,2]
[335557579,1724327440116,-500.0,0.00010798,2]
[335557580,1724327440126,-500.0,0.00010798,2]
[335557581,1724327440135,-500.0,0.00010798,2]
[335557582,1724327440144,-500.0,0.00010798,2]
[335557583,1724327440153,-355.12968542,0.00010798,2]
[335557584,1724327440170,-144.87031458,0.00010798,2]
[335557585,1724327440179,-467.99445256,0.00010798,2]
[335557586,1724327440190,-32.00554744,0.00010798,2]
[335557587,1724327440200,-447.52728087,0.00010798,2]
[335557588,1724327440213,-52.47271913,0.00010798,2]
[335557589,1724327440223,-500.0,0.00010798,2]
[335557590,1724327440232,-59.70968326,0.00010798,2]
[335557591,1724327440243,-313.27,0.00010798,2]
[335557592,1724327440253,-127.02031674,0.00010798,2]
[335557593,1724327440263,-127.97967326,0.00010798,2]
[335557594,1724327440340,-372.02032674,0.00010798,2]
[335557595,1724327440350,-500.0,0.00010798,2]
[335557596,1724327440359,-176.56243626,0.00010798,2]
[335557597,1724327440370,-323.43756374,0.00010798,2]
[335557599,1724327440379,-500.0,0.00010798,2]
[335557600,1724327440389,-23.08454193,0.00010798,2]
[335557604,1724327440411,-476.91545807,0.00010798,2]
[335557605,1724327440421,-500.0,0.00010798,2]
[335557607,1724327440430,-500.0,0.00010798,2]
[335557609,1724327440439,-317.12,0.00010798,2]
[335557611,1724327440448,-500.0,0.00010798,2]
[335557612,1724327440457,-500.0,0.00010798,2]
[335557614,1724327440466,-500.0,0.00010798,2]
[335557615,1724327440475,-500.0,0.00010798,2]
[335557616,1724327440484,-500.0,0.00010798,2]
[335557617,1724327440493,-500.0,0.00010798,2]
[335557618,1724327440502,-500.0,0.00010798,2]
[335557619,1724327440511,-369.36,0.00010798,2]
[335557620,1724327440520,-500.0,0.00010798,2]
[335557621,1724327440529,-500.65550237,0.00010798,2]
[335557622,1724327440538,-512.63646757,0.00010798,2]
[335557623,1724327440547,-500.0,0.00010798,2]
[335557624,1724327440556,-500.0,0.00010798,2]
[335557625,1724327440566,-500.0,0.00010798,2]
[335557626,1724327440576,-500.0,0.00010798,2]
[335557627,1724327440585,-500.0,0.00010798,2]
[335557628,1724327440596,-350.81708541,0.00010798,2]
[335557629,1724327440608,-149.18291459,0.00010798,2]
[335557630,1724327440618,-219.06078603,0.00010798,2]
[335557631,1724327440639,-280.93921397,0.00010798,2]
[335557632,1724327440648,-500.0,0.00010798,2]
[335557633,1724327440657,-500.0,0.00010798,2]
[335557634,1724327440666,-500.0,0.00010798,2]
[335557635,1724327440676,-500.0,0.00010798,2]
[335557636,1724327440685,-305.08228747,0.00010798,2]
[335557637,1724327440696,-194.91771253,0.00010798,2]
[335557638,1724327440705,-500.0,0.00010798,2]
[335557639,1724327440714,-500.0,0.00010798,2]
[335557640,1724327440723,-500.0,0.00010798,2]
[335557641,1724327440733,-500.0,0.00010798,2]
[335557642,1724327440742,-500.0,0.00010798,2]
[335557643,1724327440752,-500.0,0.00010798,2]
[335557644,1724327440762,-500.0,0.00010798,2]
[335557645,1724327440773,-611.68,0.00010798,2]
[335557646,1724327440784,-500.0,0.00010798,2]
[335557647,1724327440794,-500.0,0.00010798,2]
[335557648,1724327440804,-500.0,0.00010798,2]
[335557649,1724327440813,-500.0,0.00010798,2]
[335557650,1724327440825,-500.0,0.00010798,2]
[335557651,1724327440834,-500.0,0.00010798,2]
[335557652,1724327440843,-529.7187017,0.00010798,2]
[335557653,1724327440853,-500.0,0.00010798,2]
[335557654,1724327440862,-266.20573421,0.00010798,2]
[335557655,1724327440979,-233.79426579,0.00010798,2]
[335557656,1724327441005,-500.0,0.00010798,2]
[335557657,1724327441014,-500.0,0.00010798,2]
[335557658,1724327441023,-500.0,0.00010798,2]
[335557659,1724327441033,-500.0,0.00010798,2]
[335557660,1724327441042,-500.0,0.00010798,2]
[335557661,1724327441051,-500.0,0.00010798,2]
[335557662,1724327441060,-217.38,0.00010798,2]
[335557663,1724327441070,-519.3177326,0.00010798,2]
[335557664,1724327441079,-500.0,0.00010798,2]
[335557665,1724327441089,-500.0,0.00010798,2]
[335557666,1724327441098,-500.0,0.00010798,2]
[335557667,1724327441107,-500.0,0.00010798,2]
[335557668,1724327441118,-276.92,0.00010798,2]
[335557669,1724327441129,-500.0,0.00010798,2]
[335557670,1724327441141,-500.0,0.00010798,2]
[335557671,1724327441150,-500.0,0.00010798,2]
[335557672,1724327441160,-500.0,0.00010798,2]
[335557673,1724327441169,-500.0,0.00010798,2]
[335557674,1724327441178,-500.0,0.00010798,2]
[335557675,1724327441188,-500.0,0.00010798,2]
[335557676,1724327441197,-500.0,0.00010798,2]
[335557677,1724327441210,-605.60911859,0.00010798,2]
[335557678,1724327441219,-500.0,0.00010798,2]
[335557679,1724327441228,-500.0,0.00010798,2]
[335557680,1724327441237,-500.0,0.00010798,2]
[335557681,1724327441246,-500.0,0.00010798,2]
[335557682,1724327441256,-500.0,0.00010798,2]
[335557683,1724327441266,-500.0,0.00010798,2]
[335557684,1724327441276,-336.16,0.00010798,2]
[335557685,1724327441288,-500.0,0.00010798,2]
[335557686,1724327441298,-500.0,0.00010798,2]
[335557687,1724327441307,-500.0,0.00010798,2]
[335557688,1724327441316,-500.0,0.00010798,2]
[335557689,1724327441325,-615.18094896,0.00010798,2]
[335557690,1724327441335,-500.0,0.00010798,2]
[335557691,1724327441345,-500.0,0.00010798,2]
[335557692,1724327441355,-500.0,0.00010798,2]
[335557693,1724327441365,-500.0,0.00010798,2]
[335557694,1724327441374,-500.0,0.00010798,2]
[335557695,1724327441383,-1187.1374212,0.00010798,3]
[335557696,1724327441393,-500.0,0.00010798,2]
[335557697,1724327441402,-500.0,0.00010798,2]
[335557698,1724327441411,-500.0,0.00010798,2]
[335557699,1724327441420,-500.0,0.00010798,2]
[335557700,1724327441430,-500.0,0.00010798,2]
[335557701,1724327441439,-500.0,0.00010798,2]
[335557702,1724327441448,-500.0,0.00010798,2]
[335557703,1724327441457,-500.0,0.00010798,2]
[335557704,1724327441466,-500.0,0.00010798,2]
[335557705,1724327441475,-500.0,0.00010798,2]
[335557706,1724327441484,-500.0,0.00010798,2]
[335557707,1724327441492,-500.0,0.00010798,2]
[335557708,1724327441501,-500.0,0.00010798,2]
[335557709,1724327441511,-500.0,0.00010798,2]
[335557710,1724327441521,-500.0,0.00010798,2]
[335557711,1724327441531,-500.0,0.00010798,2]
[335557712,1724327441541,-500.0,0.00010798,2]
[335557713,1724327441551,-387.26590642,0.00010798,2]
[335557714,1724327441560,-500.0,0.00010798,2]
[335557715,1724327441570,-500.0,0.00010798,2]
[335557716,1724327441580,-500.0,0.00010798,2]
[335557717,1724327441590,-500.0,0.00010798,2]
[335557718,1724327441599,-500.0,0.00010798,2]
[335557719,1724327441609,-500.0,0.00010798,2]
[335557720,1724327441619,-500.0,0.00010798,2]
[335557721,1724327441628,-500.0,0.00010798,2]
[335557722,1724327441642,-500.0,0.00010798,2]
[335557723,1724327441651,-500.0,0.00010798,2]
[335557724,1724327441660,-500.0,0.00010798,2]
[335557725,1724327441670,-500.0,0.00010798,2]
[335557726,1724327441679,-500.0,0.00010798,2]
[335557727,1724327441688,-500.0,0.00010798,2]
[335557728,1724327441697,-500.0,0.00010798,2]
[335557729,1724327441706,-500.0,0.00010798,2]
[335557730,1724327441715,-500.0,0.00010798,2]
[335557731,1724327441724,-500.0,0.00010798,2]
[335557732,1724327441733,-500.0,0.00010798,2]
[335557733,1724327441743,-500.0,0.00010798,2]
[335557734,1724327441751,-500.0,0.00010798,2]
[335557735,1724327441760,-500.0,0.00010798,2]
[335557736,1724327441770,-306.64,0.00010798,2]
[335557737,1724327441779,-500.0,0.00010798,2]